bitfinex-derivatives/quotes_BNBF0:USTF0_20250511
["timestamp","ask_amount","ask_price","bid_price","bid_amount"]
[1746957793852,0.56771778,658.97,657.91,1.16777097]
[1746957794052,0.56771778,658.97,657.92,1.16777097]
[1746957794656,0.56771778,658.97,657.93,1.16777097]
[1746957795160,0.56771778,658.97,657.9,0.26421383]
[1746957795757,0.56771778,658.97,657.91,1.16688915]
[1746957796256,0.56771778,658.97,657.92,1.16688915]
[1746957796455,0.30350395,658.97,657.92,1.16688915]
[1746957796755,0.30350395,658.97,657.87,0.30401143]
[1746957797257,0.30350395,658.97,657.88,1.16672226]
[1746957797859,0.30350395,658.97,657.89,1.16672226]
[1746957798662,0.30350395,658.97,657.88,1.16672226]
[1746957799155,0.30350395,658.97,657.89,1.16672226]
[1746957799660,0.30350395,658.97,657.9,1.43095114]
[1746957800259,0.30350395,658.97,657.9,0.26422888]
[1746957801360,0.30350395,658.97,657.91,1.16611907]
[1746957802762,0.30350395,658.97,657.9,0.2642038]
[1746957803161,0.30350395,658.97,657.91,1.16611907]
[1746957805765,0.30350395,658.97,657.9,0.26413963]
[1746957806264,0.30350395,658.97,657.91,1.16611907]
[1746957809271,0.30350395,658.97,657.88,1.16611907]
[1746957811672,0.30350395,658.97,657.89,0.2641657]
[1746957812673,0.30350395,658.97,657.9,1.16611907]
[1746957814875,0.30350395,658.97,657.89,0.2642038]
[1746957815472,0.30350395,658.97,657.9,1.16611907]
[1746957821080,0.30350395,658.97,657.89,0.2642048]
[1746957821382,0.30350395,658.97,657.9,1.16611907]
[1746957823883,0.30350395,658.97,657.89,0.26419879]
[1746957824084,0.30350395,658.97,657.9,1.16611907]
[1746957826778,0.30350395,658.97,657.89,0.26420079]
[1746957827284,0.30350395,658.97,657.9,1.16611907]
[1746957831285,0.30350395,658.97,657.91,1.16611907]
[1746957831585,0.30350395,658.97,657.92,1.16611907]
[1746957832387,0.30350395,658.97,657.9,1.16611907]
[1746957832886,0.30350395,658.97,657.91,1.16611907]
[1746957833585,0.30350395,658.97,657.92,1.16611907]
[1746957834485,0.30350395,658.97,657.93,1.16611907]
[1746957834780,0.30350395,658.97,657.94,1.16611907]
[1746957835686,0.30350395,658.97,657.95,1.16611907]
[1746957836204,0.30350395,658.97,657.96,1.16611907]
[1746957836612,0.30350395,658.97,657.97,1.16611907]
[1746957837008,0.30350395,658.97,657.92,1.16611907]
[1746957837505,0.30350395,658.97,657.93,1.16611907]
[1746957838009,0.30350395,658.97,657.94,1.16611907]
[1746957839007,0.30350395,658.97,657.95,1.16611907]
[1746957839610,0.30350395,658.97,657.96,1.16611907]
[1746957840218,0.30350395,658.97,657.97,1.16611907]
[1746957840622,0.26424794,658.96,657.97,1.16611907]
[1746957841019,0.26424794,658.96,657.92,1.16611907]
[1746957841724,0.26424794,658.96,657.93,1.16611907]
[1746957842110,0.26424794,658.96,657.94,1.16611907]
[1746957842611,0.26424794,658.96,657.95,1.16611907]
[1746957843319,0.26424794,658.96,657.92,1.16611907]
[1746957843818,0.26424794,658.96,657.93,1.16611907]
[1746957844211,0.26424794,658.96,657.94,1.16611907]
[1746957844510,0.30350395,658.97,657.94,1.16611907]
[1746957844816,0.30350395,658.97,657.95,1.16611907]
[1746957845420,0.30350395,658.97,657.96,1.16611907]
[1746957846121,0.30350395,658.97,657.97,1.16611907]
[1746957846625,0.26424693,658.96,657.98,1.16611907]
[1746957847311,0.26424693,658.96,657.99,1.16611907]
[1746957847507,0.30350395,658.97,657.99,1.16611907]
[1746957848099,0.30350395,658.97,657.87,0.30401143]
[1746957848597,0.30350395,658.97,657.88,1.1705124]
[1746957848998,0.30350395,658.97,657.89,1.1705124]
[1746957849598,0.30350395,658.97,657.9,0.26425596]
[1746957849799,0.30350395,658.97,657.91,1.1705124]
[1746957850395,0.30350395,658.97,657.92,1.1705124]
[1746957851100,0.30350395,658.97,657.93,1.1705124]
[1746957851799,0.30350395,658.97,657.94,1.1705124]
[1746957852200,0.26423891,658.96,657.94,1.1705124]
[1746957852699,0.26423891,658.96,657.95,1.1705124]
[1746957852994,0.26423891,658.96,657.96,1.1705124]
[1746957853402,0.26423891,658.96,657.97,1.1705124]
[1746957853597,0.30350395,658.97,657.97,1.1705124]
[1746957853894,0.26427101,658.95,657.97,1.1705124]
[1746957854094,0.26427101,658.95,657.87,0.30401143]
[1746957854601,0.26427101,658.95,657.88,1.17006544]
[1746957855400,0.26427101,658.95,657.89,1.17006544]
[1746957855600,0.26427101,658.95,657.89,1.43434448]
[1746957855796,0.26427101,658.95,657.9,1.17006544]
[1746957856602,0.30350395,658.97,657.9,1.17006544]
[1746957856795,0.30350395,658.97,657.91,1.17006544]
[1746957857000,0.30350395,658.97,657.92,1.17006544]
[1746957857403,0.30350395,658.97,657.93,1.17006544]
[1746957858203,0.30350395,658.97,657.94,1.17006544]
[1746957858500,0.30350395,658.97,657.95,1.17006544]
[1746957859103,0.30350395,658.97,657.96,1.17006544]
[1746957859600,0.30350395,658.97,657.9,1.17006544]
[1746957860002,0.30350395,658.97,657.91,1.17006544]
[1746957860402,0.30350395,658.97,657.92,1.17006544]
[1746957860903,0.30350395,658.97,657.93,1.17006544]
[1746957861202,0.30350395,658.97,657.9,1.17006544]
[1746957861605,0.30350395,658.97,657.91,1.17006544]
[1746957862706,0.30350395,658.97,657.92,1.17006544]
[1746957863303,0.30350395,658.97,657.93,1.17006544]
[1746957863904,0.30350395,658.97,657.91,1.17006544]
[1746957864401,0.30350395,658.97,657.92,1.17006544]
[1746957864807,0.30350395,658.97,657.93,1.17006544]
[1746957865410,0.30350395,658.97,657.94,1.17006544]
[1746957865708,0.30350395,658.97,657.95,1.17006544]
[1746957866009,0.30350395,658.97,657.91,1.17006544]
[1746957866604,0.30350395,658.97,657.92,1.17006544]
[1746957867010,0.30350395,658.97,657.9,0.26427101]
[1746957867011,0.30350395,658.97,657.93,1.17006544]
[1746957867409,0.30350395,658.97,657.94,1.17006544]
[1746957867809,0.30350395,658.97,657.95,1.17006544]
[1746957868510,0.30350395,658.97,657.96,1.17006544]
[1746957868707,0.2642359,658.96,657.96,1.17006544]
[1746957868905,0.2642359,658.96,657.97,1.17006544]
[1746957869411,0.2642359,658.96,657.92,0.2642359]
[1746957869612,0.2642359,658.96,657.93,1.17004986]
[1746957870113,0.2642359,658.96,657.92,0.2642359]
[1746957871408,0.2642359,658.96,657.87,0.30401143]
[1746957871608,0.30350395,658.97,657.87,0.30401143]
[1746957871910,0.30350395,658.97,657.92,0.26428005]
[1746957872813,0.30350395,658.97,657.93,1.17006535]
[1746957873515,0.30350395,658.97,657.92,0.26428005]
[1746957875609,0.30350395,658.97,657.93,1.17023583]
[1746957876315,0.30350395,658.97,657.92,0.26428005]
[1746957877315,0.30350395,658.97,657.93,1.1701316]
[1746957877917,0.30350395,658.97,657.92,0.26428005]
[1746957879216,0.30350395,658.97,657.93,1.17052745]
[1746957879914,0.30350395,658.97,657.92,0.26428005]
[1746957880516,0.30350395,658.97,657.87,0.30401143]
[1746957880719,0.30350395,658.97,657.88,1.17057717]
[1746957881017,0.30350395,658.97,657.89,1.17057717]
[1746957881312,0.30350395,658.97,657.9,1.17057717]
[1746957882211,0.30350395,658.97,657.91,1.17057717]
[1746957883218,0.30350395,658.97,657.92,1.17057717]
[1746957883618,0.30350395,658.97,657.93,1.17057717]
[1746957884519,0.30350395,658.97,657.94,1.17057717]
[1746957884920,0.30350395,658.97,657.95,1.17057717]
[1746957885119,0.30350395,658.97,657.96,1.17057717]
[1746957885419,0.30350395,658.97,657.97,1.17057717]
[1746957886022,0.30350395,658.97,657.98,1.17057717]
[1746957886821,0.30350395,658.97,657.99,1.17057717]
[1746957887422,0.30350395,658.97,657.88,1.17057717]
[1746957887926,0.30350395,658.97,657.89,1.17057717]
[1746957888124,0.30350395,658.97,657.9,1.17057717]
[1746957888626,0.30350395,658.97,657.91,1.17057717]
[1746957888924,0.30350395,658.97,657.92,1.17057717]
[1746957889725,0.26421985,658.96,657.93,1.17057717]
[1746957889926,0.5677284,658.96,657.93,1.17057717]
[1746957890127,0.5677284,658.96,657.94,1.17057717]
[1746957890425,0.5677284,658.96,657.95,1.17057717]
[1746957891025,0.5677284,658.96,657.96,1.17057717]
[1746957891726,0.5677284,658.96,657.97,1.17057717]
[1746957892026,0.5677284,658.96,657.87,0.30401143]
[1746957892027,0.5677284,658.96,657.98,1.17057717]
[1746957892625,0.5677284,658.96,657.99,1.17057717]
[1746957893026,0.5677284,658.96,658.0,1.17057717]
[1746957893327,0.5677284,658.96,657.87,0.30401143]
[1746957894028,0.5677284,658.96,657.88,1.17099103]
[1746957894726,0.5677284,658.96,657.89,1.17099103]
[1746957895226,0.5677284,658.96,657.9,1.17099103]
[1746957895528,0.30350855,658.96,657.9,1.17099103]
[1746957895728,0.30350855,658.96,657.91,1.43526706]
[1746957896523,0.30350855,658.96,657.92,1.17099103]
[1746957897231,0.30350855,658.96,657.93,1.17099103]
[1746957897631,0.26420982,658.95,657.93,1.17099103]
[1746957897932,0.26420982,658.95,657.94,1.17099103]
[1746957898531,0.30350855,658.96,657.95,1.17099103]
[1746957899232,0.30350855,658.96,657.96,1.17099103]
[1746957899954,0.30350855,658.96,657.97,1.17099103]
[1746957900753,0.30350855,658.96,657.98,1.17099103]
[1746957901468,0.30350855,658.96,657.99,1.17099103]
[1746957902387,0.30350855,658.96,658.0,1.17099103]
[1746957902956,0.30350855,658.96,657.87,0.30401143]
[1746957903368,0.30350855,658.96,657.88,1.17110434]
[1746957904169,0.30350855,658.96,657.89,1.17110434]
[1746957904464,0.30350855,658.96,657.9,1.17110434]
[1746957905070,0.30350855,658.96,657.91,1.17110434]
[1746957905762,0.30350855,658.96,657.92,1.17110434]
[1746957906566,0.30350855,658.96,657.93,1.17110434]
[1746957906873,0.30350855,658.96,657.94,1.17110434]
[1746957907865,0.30350855,658.96,657.95,1.17110434]
[1746957908058,0.30350855,658.96,657.96,1.17110434]
[1746957908563,0.30350855,658.96,657.97,1.17110434]
[1746957909166,0.30350855,658.96,657.98,1.17110434]
[1746957909765,0.30350855,658.96,657.99,1.17110434]
[1746957910065,0.30350855,658.96,658.0,1.17110434]
[1746957910568,0.30350855,658.96,658.01,1.17110434]
[1746957911066,0.30350855,658.96,658.02,1.17110434]
[1746957911666,0.30350855,658.96,657.87,0.30401143]
[1746957911967,0.30350855,658.96,657.88,1.16827141]
[1746957912469,0.30350855,658.96,657.89,1.16827141]
[1746957912764,0.30350855,658.96,657.9,1.16827141]
[1746957913171,0.30350855,658.96,657.88,1.16827141]
[1746957917844,0.30350855,658.96,657.89,1.16827141]
[1746957918448,0.30350855,658.96,657.9,1.16827141]
[1746957918643,0.30350855,658.96,657.9,1.43247321]
[1746957918842,0.30350855,658.96,657.91,1.16827141]
[1746957919646,0.30350855,658.96,657.92,1.16827141]
[1746957919847,0.30350855,658.96,657.93,1.16827141]
[1746957920346,0.30350855,658.96,657.94,1.16827141]
[1746957920743,0.30350855,658.96,657.95,1.16827141]
[1746957920947,0.30350855,658.96,657.96,1.16827141]
[1746957921348,0.30350855,658.96,657.97,1.16827141]
[1746957921646,0.30350855,658.96,657.9,0.2642018]
[1746957921647,0.30350855,658.96,657.98,1.16827141]
[1746957922448,0.30350855,658.96,657.99,1.16827141]
[1746957922748,0.30350855,658.96,658.0,1.16827141]
[1746957923048,0.30350855,658.96,658.01,1.16827141]
[1746957923549,0.30350855,658.96,658.02,1.16827141]
[1746957924050,0.30350855,658.96,658.03,1.16827141]
[1746957924649,0.30350855,658.96,658.04,1.16827141]
[1746957925150,0.30350855,658.96,658.05,1.16827141]
[1746957925551,0.30350855,658.96,658.06,1.16827141]
[1746957926853,0.30350855,658.96,657.87,0.30401143]
[1746957927252,0.30350855,658.96,657.88,1.16821781]
[1746957927651,0.30350855,658.96,657.88,1.43249183]
[1746957927946,0.30350855,658.96,657.89,1.16821781]
[1746957928252,0.30350855,658.96,657.9,1.16821781]
[1746957929253,0.30350855,658.96,657.91,1.16821781]
[1746957929655,0.30350855,658.96,657.92,1.16821781]
[1746957930653,0.30350855,658.96,657.93,1.16821781]
[1746957930954,0.30350855,658.96,657.94,1.16821781]
[1746957931956,0.30350855,658.96,657.95,1.16821781]
[1746957932260,0.30350855,658.96,657.96,1.16821781]
[1746957932857,0.30350855,658.96,657.97,1.16821781]
[1746957933456,0.30350855,658.96,657.98,1.16821781]
[1746957933854,0.30350855,658.96,657.99,1.16821781]
[1746957934359,0.30350855,658.96,658.0,1.16821781]
[1746957935058,0.30350855,658.96,658.01,1.16821781]
[1746957935657,0.30350855,658.96,658.02,1.16821781]
[1746957936258,0.30350855,658.96,657.87,0.30401143]
[1746957936259,0.30350855,658.96,657.88,1.16821781]
[1746957936659,0.30350855,658.96,657.89,0.2642349]
[1746957936858,0.30350855,658.96,657.9,1.16821781]
[1746957937760,0.30350855,658.96,657.91,1.16821781]
[1746957938161,0.30350855,658.96,657.92,1.16821781]
[1746957938563,0.30350855,658.96,657.93,1.16821781]
[1746957939166,0.30350855,658.96,657.94,1.16821781]
[1746957939665,0.30350855,658.96,657.95,1.16821781]
[1746957940163,0.30350855,658.96,657.96,1.16821781]
[1746957940858,0.30350855,658.96,657.97,1.16821781]
[1746957941459,0.30350855,658.96,657.98,1.16821781]
[1746957941864,0.30350855,658.96,657.99,1.16821781]
[1746957942159,0.30350855,658.96,658.0,1.16821781]
[1746957942966,0.30350855,658.96,658.01,1.16821781]
[1746957943465,0.30350855,658.96,658.02,1.16821781]
[1746957944361,0.30350855,658.96,658.03,1.16821781]
[1746957944865,0.30350855,658.96,658.04,1.16821781]
[1746957945365,0.30350855,658.96,658.05,1.16821781]
[1746957945765,0.30350855,658.96,658.06,1.16821781]
[1746957946265,0.30350855,658.96,658.07,1.16821781]
[1746957946668,0.30350855,658.96,658.08,1.16821781]
[1746957947267,0.30350855,658.96,658.09,1.16821781]
[1746957947766,0.30350855,658.96,658.1,1.16821781]
[1746957948668,0.30350855,658.96,658.11,1.16821781]
[1746957949566,0.30350855,658.96,658.12,1.16821781]
[1746957950067,0.30350855,658.96,658.04,0.26416369]
[1746957950867,0.30350855,658.96,658.05,1.16727014]
[1746957951166,0.30350855,658.96,658.06,1.16727014]
[1746957951569,0.30350855,658.96,658.07,1.16727014]
[1746957952263,0.30350855,658.96,658.05,1.16727014]
[1746957952968,0.30350855,658.96,658.06,1.16727014]
[1746957953468,0.30350855,658.96,658.05,1.16727014]
[1746957954065,0.30350855,658.96,658.06,1.16727014]
[1746957954665,0.30350855,658.96,658.05,1.16727014]
[1746957955370,0.30350855,658.96,658.06,1.16727014]
[1746957955971,0.30350855,658.96,658.07,1.16727014]
[1746957956866,0.30350855,658.96,657.88,1.16727014]
[1746957957271,0.30350855,658.96,657.89,1.16727014]
[1746957957864,0.30350855,658.96,657.9,1.16727014]
[1746957958471,0.30350855,658.96,657.91,1.16727014]
[1746957959373,0.30350855,658.96,657.92,1.16727014]
[1746957960073,0.30350855,658.96,657.93,1.16727014]
[1746957960471,0.30350855,658.96,657.94,1.16727014]
[1746957960876,0.30350855,658.96,657.95,1.16727014]
[1746957961377,0.30350855,658.96,657.88,1.16727014]
[1746957962173,0.30350855,658.96,657.89,1.16727014]
[1746957962677,0.30350855,658.96,657.9,1.16727014]
[1746957962978,0.30350855,658.96,657.91,1.16727014]
[1746957963678,0.30350855,658.96,657.92,0.26416469]
[1746957963873,0.30350855,658.96,657.93,1.16727014]
[1746957964980,0.30350855,658.96,657.92,0.26419578]
[1746957965379,0.30350855,658.96,657.93,1.16727014]
[1746957966079,0.30350855,658.96,657.94,1.16727014]
[1746957966880,0.30350855,658.96,657.95,1.16727014]
[1746957967281,0.30350855,658.96,657.93,1.16727014]
[1746957967876,0.30350855,658.96,657.94,1.16727014]
[1746957968274,0.30350855,658.96,657.92,0.26419578]
[1746957968883,0.30350855,658.96,657.93,1.16727014]
[1746957969384,0.30350855,658.96,657.94,1.16727014]
[1746957969787,0.30350855,658.96,657.95,1.16727014]
[1746957970382,0.30350855,658.96,657.96,1.16727014]
[1746957970785,0.30350855,658.96,657.97,1.16727014]
[1746957971184,0.30350855,658.96,657.98,1.16727014]
[1746957972088,0.30350855,658.96,657.99,1.16727014]
[1746957972423,0.30350855,658.96,658.0,1.16727014]
[1746957973017,0.30350855,658.96,658.01,1.16727014]
[1746957973697,0.30350855,658.96,658.02,1.16727014]
[1746957974296,0.30350855,658.96,658.03,1.16727014]
[1746957975095,0.30350855,658.96,658.04,1.16727014]
[1746957975392,0.30350855,658.96,658.05,1.16727014]
[1746957975888,0.30350855,658.96,658.06,1.16727014]
[1746957976387,0.30350855,658.96,658.07,1.16727014]
[1746957977091,0.30350855,658.96,658.08,1.16727014]
[1746957977790,0.30350855,658.96,658.09,1.16727014]
[1746957978389,0.30350855,658.96,658.1,1.16727014]
[1746957978789,0.30350855,658.96,657.88,1.16727014]
[1746957979491,0.30350855,658.96,657.89,1.16727014]
[1746957979787,0.30350855,658.96,657.89,1.431495]
[1746957980093,0.30350855,658.96,657.9,1.16727014]
[1746957980492,0.30350855,658.96,657.91,1.16727014]
[1746957981291,0.30350855,658.96,657.92,1.16727014]
[1746957981892,0.30350855,658.96,657.93,1.16727014]
[1746957982789,0.30350855,658.96,657.94,1.16727014]
[1746957983590,0.30350855,658.96,657.95,1.16727014]
[1746957983791,0.30350855,658.96,657.96,1.16727014]
[1746957984493,0.30350855,658.96,657.97,1.16727014]
[1746957984889,0.30350855,658.96,657.98,1.16727014]
[1746957985691,0.30350855,658.96,657.99,1.16727014]
[1746957986493,0.30350855,658.96,657.94,0.26420781]
[1746957986494,0.30350855,658.96,658.0,1.16727014]
[1746957986792,0.30350855,658.96,658.01,1.16727014]
[1746957987393,0.30350855,658.96,658.02,1.16727014]
[1746957988194,0.30350855,658.96,658.03,1.16727014]
[1746957988788,0.30350855,658.96,658.04,1.16727014]
[1746957989386,0.30350855,658.96,658.05,1.16727014]
[1746957990092,0.30350855,658.96,658.06,1.16727014]
[1746957990488,0.30350855,658.96,657.87,0.30401143]
[1746957991294,0.30350855,658.96,657.88,1.16921314]
[1746957991692,0.30350855,658.96,657.89,1.16921314]
[1746957991894,0.30350855,658.96,657.89,1.43331268]
[1746957992393,0.30350855,658.96,657.9,1.16921314]
[1746957993191,0.30350855,658.96,657.91,1.16921314]
[1746957993596,0.30350855,658.96,657.9,1.16921314]
[1746957993787,0.26411557,658.95,657.9,1.16921314]
[1746957993987,0.30351777,658.94,657.9,1.16921314]
[1746957994491,0.30351777,658.94,657.87,0.30401143]
[1746957994994,0.26444673,658.93,657.88,0.26444673]
[1746957995294,0.26444673,658.93,657.88,1.43398318]
[1746957995295,0.30352698,658.92,657.88,1.43398318]
[1746957995595,0.30352698,658.92,657.88,0.26444673]
[1746957997591,0.30352698,658.92,657.87,0.30401143]
[1746957998097,0.26437843,658.91,657.88,0.26437843]
[1746957998291,0.56791002,658.91,657.88,0.26437843]
[1746958000598,0.30353159,658.91,657.87,0.30401143]
[1746958000995,0.26437742,658.9,657.88,0.26437742]
[1746958001295,0.26437742,658.9,657.89,1.16816395]
[1746958002103,0.26437742,658.9,657.9,1.16816395]
[1746958002900,0.26437742,658.9,657.88,0.26437742]
[1746958003501,0.30353159,658.91,657.89,1.16694531]
[1746958004103,0.30353159,658.91,657.9,1.16694531]
[1746958004805,0.30353159,658.91,657.87,0.30401143]
[1746958005706,0.26436738,658.9,657.88,1.43143227]
[1746958006502,0.30353159,658.91,657.88,1.16706489]
[1746958006705,0.30353159,658.91,657.89,1.16706489]
[1746958007006,0.30353159,658.91,657.87,0.30401143]
[1746958007708,0.30353159,658.91,657.88,1.16702325]
[1746958008308,0.30353159,658.91,657.89,1.16702325]
[1746958008909,0.30353159,658.91,657.87,0.30401143]
[1746958009710,0.30353159,658.91,657.88,1.16706964]
[1746958010409,0.30353159,658.91,657.89,1.16706964]
[1746958010911,0.30353159,658.91,657.87,0.30401143]
[1746958011709,0.30353159,658.91,656.4,0.95933815]
[1746958011910,0.30353159,658.91,656.52,0.30463656]
[1746958012711,0.30353159,658.91,656.53,0.26437843]
[1746958012912,0.26437843,658.9,656.64,0.30458089]
[1746958013107,0.3035408,658.89,656.64,0.30458089]
[1746958013611,0.3035408,658.89,656.65,1.16733231]
[1746958013812,0.3035408,658.89,656.76,0.30452524]
[1746958014112,0.3035408,658.89,656.77,1.16733231]
[1746958014314,0.3035408,658.89,656.87,0.30447424]
[1746958014511,0.3035408,658.89,656.88,1.16733231]
[1746958014706,0.3035408,658.89,656.98,0.30442327]
[1746958014905,0.3035408,658.89,656.99,1.16733231]
[1746958015106,0.3035408,658.89,657.01,0.30440936]
[1746958015810,0.26440353,658.88,657.02,1.16733231]
[1746958016008,0.30355001,658.87,657.04,0.30439547]
[1746958016513,0.30355001,658.87,657.05,1.16733231]
[1746958016713,0.30355001,658.87,657.07,0.30438157]
[1746958016912,0.30355001,658.87,657.08,1.16733231]
[1746958017113,0.30355001,658.87,657.1,0.30436767]
[1746958017615,0.30355001,658.87,657.11,1.16733231]
[1746958017816,0.30355001,658.87,657.13,0.30435378]
[1746958018117,0.30355001,658.87,657.14,1.16733231]
[1746958018314,0.30355001,658.87,657.16,0.30433988]
[1746958018714,0.26439048,658.86,657.16,0.30433988]
[1746958018911,0.26439048,658.86,657.17,1.16733231]
[1746958019520,0.26439048,658.86,657.18,1.16733231]
[1746958020622,0.26439048,658.86,657.19,1.16733231]
[1746958021221,0.26439048,658.86,657.2,1.16733231]
[1746958021723,0.26439048,658.86,657.21,1.16733231]
[1746958022822,0.26439048,658.86,657.22,1.16733231]
[1746958023424,0.26439048,658.86,657.23,1.16733231]
[1746958023818,0.26439048,658.86,657.24,1.16733231]
[1746958024524,0.30355001,658.87,657.25,1.16733231]
[1746958024826,0.26447587,658.85,657.25,1.16733231]
[1746958025023,0.26447587,658.85,657.26,1.16733231]
[1746958025627,0.26447587,658.85,657.17,1.16733231]
[1746958025819,0.30356844,658.83,657.17,1.16733231]
[1746958026019,0.30356844,658.83,657.18,1.16733231]
[1746958026423,0.30356844,658.83,657.19,1.16733231]
[1746958026724,0.30356844,658.83,657.2,1.16733231]
[1746958027120,0.30356844,658.83,657.21,1.16733231]
[1746958027719,0.30356844,658.83,657.17,1.16733231]
[1746958028228,0.30356844,658.83,657.18,1.16733231]
[1746958028625,0.30356844,658.83,657.19,1.16733231]
[1746958028924,0.30356844,658.83,657.2,1.16733231]
[1746958029425,0.30356844,658.83,657.21,1.16733231]
[1746958029828,0.30356844,658.83,657.22,1.16733231]
[1746958030627,0.30356844,658.83,657.23,1.16733231]
[1746958030825,0.26446582,658.82,657.23,1.16733231]
[1746958031325,0.26446582,658.82,657.24,1.16733231]
[1746958031627,0.30358227,658.8,657.24,1.16733231]
[1746958031827,0.30358227,658.8,657.25,1.16733231]
[1746958032327,0.30358227,658.8,657.26,1.16733231]
[1746958032827,0.30358227,658.8,657.27,1.16733231]
[1746958033122,0.30358227,658.8,657.28,1.16733231]
[1746958033526,0.30358227,658.8,657.29,1.16733231]
[1746958033729,0.26445879,658.79,657.29,1.16733231]
[1746958034028,0.30359609,658.77,657.3,1.16733231]
[1746958034228,0.30359609,658.77,657.31,1.16733231]
[1746958034927,0.30359609,658.77,657.32,1.16733231]
[1746958035428,0.30359609,658.77,657.33,1.16733231]
[1746958036130,0.30359609,658.77,657.34,1.16733231]
[1746958036631,0.30359609,658.77,657.35,1.16733231]
[1746958037224,0.30359609,658.77,657.36,1.16733231]
[1746958037628,0.30359609,658.77,657.37,1.16733231]
[1746958037929,0.30359609,658.77,657.38,1.16733231]
[1746958038330,0.30359609,658.77,657.39,1.16733231]
[1746958039130,0.30359609,658.77,657.4,1.16733231]
[1746958039728,0.30359609,658.77,657.41,1.16733231]
[1746958040126,0.30359609,658.77,657.42,1.16733231]
[1746958040427,0.30359609,658.77,657.16,0.30433988]
[1746958041332,0.30359609,658.77,657.17,1.16323403]
[1746958041533,0.30359609,658.77,657.18,0.30433062]
[1746958041727,0.30359609,658.77,657.19,1.16323403]
[1746958042433,0.30359609,658.77,657.2,1.16323403]
[1746958043034,0.30359609,658.77,657.21,0.30431673]
[1746958043333,0.30359609,658.77,657.22,1.16323403]
[1746958043632,0.30359609,658.77,657.22,1.46754613]
[1746958043835,0.30359609,658.77,657.23,1.16323403]
[1746958044532,0.30359609,658.77,657.24,1.16323403]
[1746958044830,0.30359609,658.77,657.25,1.16323403]
[1746958045236,0.30359609,658.77,657.26,1.16323403]
[1746958045636,0.30359609,658.77,657.27,1.16323403]
[1746958046233,0.30359609,658.77,657.28,1.16323403]
[1746958047034,0.30359609,658.77,657.29,1.16323403]
[1746958047633,0.30359609,658.77,657.3,1.16323403]
[1746958047934,0.30359609,658.77,657.31,1.16323403]
[1746958048834,0.30359609,658.77,657.32,1.16323403]
[1746958049430,0.30359609,658.77,657.33,1.16323403]
[1746958050135,0.30359609,658.77,657.34,1.16323403]
[1746958050635,0.30359609,658.77,657.35,1.16323403]
[1746958051434,0.30359609,658.77,657.36,1.16323403]
[1746958051835,0.26439449,658.76,657.23,1.16323403]
[1746958052034,0.30360531,658.75,657.24,0.30430284]
[1746958052234,0.30360531,658.75,657.25,1.16323403]
[1746958052535,0.30360531,658.75,657.26,1.16323403]
[1746958054035,0.30360531,658.75,657.27,1.16323403]
[1746958054932,0.30360531,658.75,657.28,1.16323403]
[1746958056634,0.30360531,658.75,657.36,1.16323403]
[1746958056933,0.30360531,658.75,657.37,0.30424266]
[1746958057238,0.30360531,658.75,657.37,1.46747669]
[1746958057841,0.30360531,658.75,657.38,1.16323403]
[1746958058039,0.30360531,658.75,657.39,0.3042334]
[1746958058339,0.30360531,658.75,657.4,1.16323403]
[1746958058541,0.30360531,658.75,657.41,0.30422415]
[1746958058842,0.30360531,658.75,657.42,1.16323403]
[1746958059039,0.30360531,658.75,657.43,0.30421489]
[1746958059240,0.30360531,658.75,657.44,1.16323403]
[1746958059442,0.30360531,658.75,657.45,0.30420564]
[1746958060143,0.30360531,658.75,657.46,1.16323403]
[1746958070640,0.30360531,658.75,657.47,1.16323403]
[1746958071046,0.30360531,658.75,657.48,1.16323403]
[1746958071748,0.30360531,658.75,657.46,1.16323403]
[1746958071945,0.30360531,658.75,657.47,1.16323403]
[1746958072448,0.30360531,658.75,657.48,1.16323403]
[1746958072850,0.30360531,658.75,657.49,1.16323403]
[1746958073449,0.30360531,658.75,657.5,1.16323403]
[1746958074049,0.30360531,658.75,657.51,1.16323403]
[1746958074550,0.30360531,658.75,657.52,1.16323403]
[1746958074945,0.30360531,658.75,657.46,1.16323403]
[1746958075250,0.30360531,658.75,657.47,1.16323403]
[1746958075651,0.30360531,658.75,657.48,1.16323403]
[1746958075851,0.56792851,658.75,657.48,1.16323403]
[1746958076052,0.56792851,658.75,657.49,1.16323403]
[1746958076554,0.56792851,658.75,657.5,1.16323403]
[1746958077153,0.56792851,658.75,657.51,1.16323403]
[1746958077747,0.56792851,658.75,657.52,1.16323403]
[1746958078653,0.56792851,658.75,657.46,1.16323403]
[1746958079453,0.56792851,658.75,657.47,1.16323403]
[1746958080055,0.56792851,658.75,657.48,1.16323403]
[1746958080657,0.56792851,658.75,657.46,1.16323403]
[1746958081560,0.30360531,658.75,657.46,1.16323403]
[1746958081863,0.2643955,658.74,657.46,1.16323403]
[1746958082659,0.30361453,658.73,657.46,1.16323403]
[1746958086461,0.30361453,658.73,657.47,1.16323403]
[1746958087061,0.30361453,658.73,657.46,1.16323403]
[1746958087761,0.30361453,658.73,657.47,1.16323403]
[1746958088263,0.30361453,658.73,657.48,1.16323403]
[1746958088662,0.30361453,658.73,657.49,1.16323403]
[1746958088962,0.30361453,658.73,657.46,1.16323403]
[1746958089664,0.30361453,658.73,657.47,1.16323403]
[1746958090465,0.30361453,658.73,657.48,1.16323403]
[1746958091360,0.30361453,658.73,657.49,1.16323403]